fUSD/lending_fUSD_20240903
["ID","MTS","AMOUNT","RATE_DAILY","PERIOD"]
[337038294,1725370232714,-846.08694448,0.00014889,2]
[337038295,1725370232724,-508.11036067,0.00014889,2]
[337038296,1725370232743,-1601.38575,0.00014889,2]
[337038297,1725370232754,-661.83156378,0.00014889,2]
[337038298,1725370232766,-458.59639819,0.00014889,2]
[337038299,1725370232780,-382.31751455,0.00014889,2]
[337038300,1725370232791,-432.000004,0.00014889,2]
[337038301,1725370232802,-290.16336359,0.00014889,2]
[337038302,1725370232813,-943.47903449,0.00014889,2]
[337038303,1725370232828,-15594.2590839,0.00014889,2]
[337038304,1725370232838,-389.84087267,0.00014889,2]
[337038305,1725370232849,-5649.28327191,0.00014889,2]
[337038306,1725370232861,-6708.88506348,0.00014889,2]
[337038307,1725370232923,-599.82225,0.00014889,2]
[337038308,1725370232936,-3106.15268631,0.00014889,2]
[337038309,1725370232948,-56667.13724936,0.00014889,2]
[337038310,1725370232957,-159.166,0.0001489,2]
[337038311,1725370232967,-150.0,0.00014891,2]
[337038312,1725370232976,-8500.0,0.00014891,2]
[337038313,1725370232985,-1211.54887117,0.00014891,2]
[337038314,1725370232996,-13177.92299829,0.00014891,2]
[337038315,1725370233078,-401.44091038,0.00014891,2]
[337038316,1725370233090,-2768.72182236,0.00014891,2]
[337038317,1725370233101,-2000.0,0.00014891,2]
[337038328,1725370237873,-1922.0,0.00014887,2]
[337038330,1725370237883,-4978.74336425,0.00014891,2]
[337038331,1725370237941,-10461.62203355,0.00014891,2]
[337038332,1725370237950,-5800.0,0.00014891,2]
[337038333,1725370237960,-416.285,0.00014892,2]
[337038334,1725370237969,-795.0,0.00014893,2]
[337038335,1725370237979,-150.0,0.00014896,2]
[337038336,1725370237988,-346.80747253,0.000149,2]
[337038337,1725370237998,-608.22353395,0.000149,2]
[337038338,1725370238269,-508.80496605,0.000149,2]
[337038339,1725370238279,-1099.21889148,0.000149,2]
[337038340,1725370238294,-5241.13075619,0.000149,2]
[337038341,1725370238314,-9809.33935233,0.000149,2]
[337038342,1725370238323,-500.0,0.000149,2]
[337038343,1725370238332,-8500.0,0.000149,2]
[337038344,1725370238342,-5800.0,0.000149,2]
[337038345,1725370238351,-35000.0,0.000149,2]
[337038346,1725370238360,-500.0,0.000149,2]
[337038347,1725370238370,-150.0,0.000149,2]
[337038348,1725370238380,-4932.0935169,0.000149,2]
[337038349,1725370238390,-150.0,0.00014902,2]
[337038350,1725370238399,-150.0,0.00014907,2]
[337038351,1725370238408,-150.0,0.00014907,2]
[337038353,1725370238418,-150.0,0.00014936,2]
[337038355,1725370238427,-150.0,0.00014942,2]
[337038356,1725370238438,-150.0,0.00014943,2]
[337038358,1725370238448,-150.0,0.00014953,2]
[337038360,1725370238458,-150.0,0.00014954,2]
[337038362,1725370238468,-150.0,0.00014965,2]
[337038364,1725370238477,-150.0,0.00014967,2]
[337038366,1725370238487,-1500.0,0.00014972,2]
[337038368,1725370238495,-500.0,0.00014973,2]
[337038370,1725370238505,-500.0,0.00014973,2]
[337038372,1725370238514,-150.0,0.00014986,2]
[337038373,1725370238524,-150.0,0.00014987,2]
[337038375,1725370238533,-1267.03891354,0.00014988,2]
[337038377,1725370238543,-6968.71402447,0.0001499,2]
[337038379,1725370238553,-633.51945677,0.0001499,2]
[337038381,1725370238562,-1500.0,0.00014994,2]
[337038383,1725370238572,-150.0,0.00014996,2]
[337038385,1725370238581,-2788.72264306,0.00014997,2]
[337038387,1725370238591,-22309.78114448,0.00014997,2]
[337038389,1725370238601,-10687.6030339,0.00014998,2]
[337038391,1725370238610,-1231.1139,0.00014998,2]
[337038394,1725370238620,-44725.1819238,0.00014998,2]
[337038396,1725370238630,-8551.4327287,0.00014998,2]
[337038398,1725370238640,-187.7031568,0.00014998,2]
[337038399,1725370238649,-4551.6761007,0.00014998,2]
[337038401,1725370238659,-10116.84068398,0.00014999,2]
[337038403,1725370238668,-1000.0,0.00014999,2]
[337038405,1725370238678,-1000.0,0.00014999,2]
[337038408,1725370238692,-1000.0,0.00014999,2]
[337038410,1725370238702,-1000.0,0.00014999,2]
[337038412,1725370238711,-1000.0,0.00014999,2]
[337038414,1725370238720,-1000.0,0.00014999,2]
[337038416,1725370238729,-303.6339816,0.00014999,2]
[337038417,1725370238738,-158.721088,0.00014999,5]
[337038419,1725370238748,-4156.61058964,0.00014999,2]
[337038421,1725370238758,-194.54437361,0.00014999,3]
[337038423,1725370238767,-4435.1013405,0.00014999,3]
[337038425,1725370238776,-516.0,0.00014999,2]
[337038427,1725370238785,-477242.52131,0.00015,2]
[337038429,1725370238794,-4610776.2078204,0.00015,2]
[337038573,1725370243055,-5882.7588,0.000149,2]
[337038575,1725370243065,-59.00214401,0.00015,2]
[337038577,1725370243077,-7565.55819903,0.00015,2]
[337038580,1725370243088,-602.54225409,0.00015,2]
[337038586,1725370243963,-891.95535,0.00015,2]
[337038589,1725370245988,-313.09377663,0.00014893,2]
[337038590,1725370246007,-679.99944149,0.00014893,2]
[337038591,1725370246022,-11241.24953575,0.00015,2]
[337038593,1725370477248,389.0,0.0001287,2]
[337038594,1725370588210,400.0,0.00012,2]
[337038595,1725370599918,400.0,0.00012,2]
[337038596,1725370612227,1000.0,0.00012,2]
[337038597,1725370625892,1000.0,0.00012,2]
[337038598,1725370633804,159.49,0.00010959,2]
[337038599,1725370648610,979.45185891,0.00011,2]
[337038600,1725370660881,434.96,0.00011977,2]
[337038604,1725371212569,413.21,0.00011885,2]
[337038608,1725371331699,-273.39802584,0.0001325,2]
[337038612,1725371431656,550.0,0.00011,2]
[337038627,1725371432742,600.0,0.00013,2]
[337038630,1725371438089,-115.60197416,0.0001325,2]
[337038632,1725371438102,-247.54130934,0.0001362,2]
[337038635,1725371438437,-141.45869066,0.0001362,2]
[337038636,1725371438447,-172.73,0.00013699,2]
[337038637,1725371438457,-200.0,0.00013699,2]
[337038638,1725371438466,-400.0,0.00013699,2]
[337038639,1725371438475,-400.0,0.00013699,2]
[337038640,1725371438485,-400.0,0.00013699,2]
[337038642,1725371438494,-250.0,0.00013746,2]
[337038644,1725371438504,-158.84,0.00013808,2]
[337038646,1725371438513,-425.04,0.00013844,2]
[337038648,1725371438522,-173.33,0.00013886,2]
[337038650,1725371438532,-1100.0,0.00013972,2]
[337038651,1725371438541,-300.0,0.00013999,2]
[337038653,1725371438550,-389.0,0.00014,2]
[337038655,1725371438559,-1349.60130934,0.00014,2]
[337038801,1725371440081,-1197.02869066,0.00014,2]
[337038803,1725371440090,-413.21,0.00014149,2]
[337038804,1725371440101,-1191.04,0.00014236,6]
[337038806,1725371440111,-389.0,0.0001437,2]
[337038807,1725371440120,-2672.85110934,0.000145,5]
[337038808,1725371440131,-7188.5693475,0.000145,5]
[337038825,1725371440339,-442.80954316,0.000145,5]
[337038827,1725371440350,-425.04,0.00014536,2]
[337038829,1725371440360,-389.0,0.0001475,2]
[337038831,1725371440369,-241.89285494,0.00014795,2]
[337038834,1725371440391,-323.59714506,0.00014795,2]
[337038836,1725371440401,-347.548484,0.00014795,2]
[337038838,1725371440410,-333.028,0.00014795,2]
[337038840,1725371440420,-159.166,0.00014795,2]
[337038842,1725371440429,-150.0,0.0001481,2]
[337038845,1725371440449,-2746.61535,0.0001485,2]
[337038848,1725371440467,-500.0,0.00014873,2]
[337038851,1725371440486,-500.0,0.00014873,2]
[337038854,1725371440504,-878.0,0.00014877,2]
[337038857,1725371440524,-5266.88,0.00014884,2]
[337038860,1725371440541,-7344.48,0.00014884,2]
[337038863,1725371440562,-10984.12,0.00014884,2]
[337038866,1725371440576,-10984.12,0.00014884,2]
[337038871,1725371440597,-10984.12,0.00014884,2]
[337038874,1725371440617,-10984.12,0.00014884,2]
[337038877,1725371440640,-10984.12,0.00014884,2]
[337038879,1725371440655,-10984.12,0.00014884,2]
[337038882,1725371440673,-880.54,0.00014884,2]
[337038885,1725371440689,-9767.9,0.00014884,2]
[337038888,1725371440709,-9767.9,0.00014884,2]
[337038890,1725371440723,-9767.9,0.00014884,2]
[337038893,1725371440743,-9767.9,0.00014884,2]
[337038896,1725371440761,-9767.9,0.00014884,2]
[337038899,1725371440777,-9767.9,0.00014884,2]
[337038901,1725371440794,-3066.6,0.00014884,2]
[337038904,1725371440811,-3258.18,0.00014884,2]
[337038907,1725371440827,-7173.25,0.00014884,2]
[337038909,1725371440846,-7173.25,0.00014884,2]
[337038912,1725371440861,-500.0,0.00014884,2]
[337038915,1725371440877,-7173.25,0.00014884,2]
[337038917,1725371440896,-7173.25,0.00014884,2]
[337038920,1725371440916,-7173.25,0.00014884,2]
[337038923,1725371440932,-7173.25,0.00014884,2]
[337038925,1725371440948,-16674.52,0.00014884,2]
[337038926,1725371440964,-5791.25,0.00014884,2]
[337038927,1725371440980,-500.0,0.00014884,2]
[337038928,1725371440996,-500.0,0.00014884,2]
[337038929,1725371441012,-500.0,0.00014884,2]
[337038930,1725371441028,-500.0,0.00014884,2]
[337038931,1725371441044,-500.0,0.00014884,2]
[337038933,1725371441061,-500.0,0.00014884,2]
[337038935,1725371441076,-6959.15,0.00014884,2]
[337038938,1725371441096,-6419.67,0.00014884,2]
[337038940,1725371441112,-9358.56,0.00014884,2]
[337038943,1725371441126,-6419.67,0.00014884,2]
[337038945,1725371441142,-6419.67,0.00014884,2]
[337038948,1725371441158,-6419.67,0.00014884,2]
[337038950,1725371441173,-6419.67,0.00014884,2]
[337038953,1725371441191,-6419.67,0.00014884,2]
[337038956,1725371441207,-10414.53,0.00014884,2]
[337038959,1725371441223,-7913.13,0.00014884,2]
[337038961,1725371441238,-7913.13,0.00014884,2]
[337038964,1725371441253,-7913.13,0.00014884,2]
[337038967,1725371441276,-7913.13,0.00014884,2]
[337038970,1725371441292,-7913.13,0.00014884,2]
[337038972,1725371441308,-7913.13,0.00014884,2]
[337038975,1725371441323,-2562.43,0.00014884,2]
[337038977,1725371441339,-2562.43,0.00014884,2]
[337038978,1725371441357,-2562.43,0.00014884,2]
[337038979,1725371441373,-2562.43,0.00014884,2]
[337038980,1725371441389,-500.0,0.00014884,2]
[337038982,1725371441406,-2562.43,0.00014884,2]
[337038985,1725371441430,-500.0,0.00014884,2]
[337038988,1725371441447,-2562.43,0.00014884,2]
[337038990,1725371441463,-500.0,0.00014884,2]
[337038993,1725371441479,-500.0,0.00014884,2]
[337038996,1725371441496,-500.0,0.00014884,2]
[337038999,1725371441513,-500.0,0.00014884,2]
[337039001,1725371441530,-8700.84,0.00014884,2]
[337039004,1725371441547,-8265.35,0.00014884,2]
[337039007,1725371441565,-8265.35,0.00014884,2]
[337039009,1725371441581,-8265.35,0.00014884,2]
[337039012,1725371441602,-8265.35,0.00014884,2]
[337039014,1725371441618,-8265.35,0.00014884,2]
[337039017,1725371441636,-8265.35,0.00014884,2]
[337039020,1725371441653,-897.76,0.00014884,2]
[337039022,1725371441670,-897.76,0.00014884,2]
[337039025,1725371441688,-897.76,0.00014884,2]
[337039028,1725371441706,-897.76,0.00014884,2]
[337039030,1725371441719,-4463.08,0.00014884,2]
[337039032,1725371441729,-897.76,0.00014884,2]
[337039034,1725371441739,-4463.08,0.00014884,2]
[337039036,1725371441749,-897.76,0.00014884,2]
[337039038,1725371441759,-4463.08,0.00014884,2]
[337039040,1725371441768,-4463.08,0.00014884,2]
[337039065,1725371442014,-4463.08,0.00014884,2]
[337039070,1725371442051,-4463.08,0.00014884,2]
[337039072,1725371442060,-2843.05,0.00014884,2]
[337039073,1725371442069,-3824.14,0.00014884,2]
[337039074,1725371442079,-3824.14,0.00014884,2]
[337039075,1725371442088,-500.0,0.00014884,2]
[337039076,1725371442103,-3824.14,0.00014884,2]
[337039077,1725371442113,-500.0,0.00014884,2]
[337039078,1725371442122,-3824.14,0.00014884,2]
[337039079,1725371442131,-3824.14,0.00014884,2]
[337039080,1725371442140,-500.0,0.00014884,2]
[337039081,1725371442150,-3824.14,0.00014884,2]
[337039082,1725371442159,-500.0,0.00014884,2]
[337039083,1725371442168,-500.0,0.00014884,2]
[337039084,1725371442178,-232.47273175,0.00014884,2]
[337039085,1725371442188,-537.74,0.00014884,2]
[337039086,1725371442198,-537.74,0.00014884,2]
[337039087,1725371442207,-537.74,0.00014884,2]
[337039088,1725371442217,-537.74,0.00014884,2]
[337039089,1725371442227,-537.74,0.00014884,2]
[337039090,1725371442237,-537.74,0.00014884,2]
[337039091,1725371442247,-1645.57,0.00014884,2]
[337039092,1725371442257,-34108.17,0.00014884,2]
[337039093,1725371442267,-192351.83154533,0.00014885,2]
[337039111,1725371444086,-1533.69390636,0.00014884,2]
[337039112,1725371444101,-3501.49907866,0.00014884,2]
[337039113,1725371444112,-571.01028,0.00014884,2]
[337039114,1725371444159,-28501.96673498,0.00014884,2]
[337039115,1725371444168,-30193.03326502,0.00014884,2]
[337039123,1725371446299,-3915.13673498,0.00014884,2]
[337039124,1725371446309,-34108.17,0.00014884,2]
[337039125,1725371446318,-34108.17,0.00014884,2]
[337039126,1725371446492,-34108.17,0.00014884,2]
[337039127,1725371446502,-1277.81212324,0.00014885,2]
[337039129,1725371446928,-8800.40886303,0.00014885,2]
[337039130,1725371446939,-282.8249982,0.00014885,2]
[337039131,1725371446967,-650.3,0.00014884,2]
[337039132,1725371446977,-409.304424,0.00014885,2]
[337039133,1725371495646,2390.19814109,0.00011781,7]
[337039134,1725371495666,10000.0,0.00011781,7]
[337039135,1725371495687,10000.0,0.00011781,7]
[337039136,1725371495708,6908.19631991,0.00011781,7]
[337039150,1725371703220,168.9,0.00011065,2]
[337039151,1725371747388,371.88,0.00011935,2]
[337039170,1725372241932,353.28,0.00011897,2]
[337039174,1725372356300,157.02,0.00010959,2]
[337039214,1725372632243,-172.73,0.00013699,2]
[337039215,1725372632252,-174.43,0.00013781,2]
[337039216,1725372632261,-151.06,0.00013781,2]
[337039217,1725372632270,-200.02,0.00013798,2]
[337039218,1725372632279,-1971.97,0.00013812,2]
[337039219,1725372632294,-468.09,0.00013812,2]
[337039220,1725372632304,-595.04158441,0.00013825,2]
[337039221,1725372632315,-404.95841559,0.00013825,2]
[337039222,1725372632325,-117.71678784,0.00013828,2]
[337039223,1725372632336,-132.28321216,0.00013828,2]
[337039224,1725372632345,-195.36,0.00013865,2]
[337039225,1725372632354,-255.02,0.00013887,2]
[337039226,1725372632363,-353.28,0.00014161,2]
[337039227,1725372632372,-1864.51678784,0.00014577,2]
[337039228,1725372632383,-1421.18809713,0.00014577,2]
[337039229,1725372632394,-750.26546194,0.00014577,2]
[337039230,1725372632405,-1266.60175907,0.00014577,2]
[337039231,1725372632416,-1255.12,0.00014577,2]
[337039232,1725372632439,-793.35,0.00014577,2]
[337039233,1725372632450,-1412.14945512,0.00014577,2]
[337039234,1725372632461,-4699.8084389,0.00014577,2]
[337039235,1725372632470,-5507.26214926,0.00014577,2]
[337039236,1725372632484,-346.73785074,0.00014577,2]
[337039237,1725372632493,-317.83942589,0.00014577,2]
[337039238,1725372632504,-351.89855854,0.00014577,2]
[337039239,1725372632515,-3062.26201557,0.00014577,2]
[337039240,1725372632525,-289.0,0.00014577,2]
[337039241,1725372632534,-1144.0,0.00014577,2]
[337039242,1725372632544,-255.02,0.00014582,2]
[337039243,1725372632553,-645.099175,0.00014693,2]
[337039244,1725372632565,-3331.74127345,0.00014693,2]
[337039246,1725372632603,-823.29175155,0.00014693,2]
[337039247,1725372632613,-150.55,0.000147,2]
[337039248,1725372632623,-150.67,0.000147,2]
[337039249,1725372632633,-2288.84612,0.0001474,2]
[337039250,1725372632643,-500.0,0.00014773,2]
[337039251,1725372632653,-150.0,0.00014779,2]
[337039252,1725372632663,-8496.15704273,0.0001478,2]
[337039253,1725372632674,-5880.55606252,0.0001478,2]
[337039254,1725372632686,-240.51547321,0.0001478,2]
[337039255,1725372632698,-14136.19763202,0.0001478,2]
[337039256,1725372632708,-8522.26157141,0.00014781,2]
[337039257,1725372632719,-578.5596183,0.00014781,2]
[337039270,1725372638260,-5275.89191552,0.00014781,2]
[337039272,1725372638270,-14376.71310523,0.00014781,2]
[337039273,1725372638280,-14376.71310523,0.00014781,2]
[337039274,1725372638289,-14376.71310523,0.00014782,2]
[337039275,1725372638299,-10093.96876879,0.00014782,2]
[337039286,1725372638727,-612.18240239,0.00014782,2]
[337039287,1725372638760,-1520.11978158,0.00014782,2]
[337039288,1725372638773,-922.44174515,0.00014782,2]
[337039290,1725372638785,-1228.00040732,0.00014782,2]
[337039292,1725372638794,-14376.71310523,0.00014782,2]
[337039294,1725372638805,-9573.85932225,0.00014783,2]
[337039297,1725372638816,-313.27,0.00014783,2]
[337039299,1725372638828,-254.99999,0.00014783,2]
[337039301,1725372638843,-888.51999758,0.00014783,2]
[337039303,1725372638854,-574.28666173,0.00014783,2]
[337039306,1725372638865,-500.0,0.00014783,2]
[337039308,1725372638877,-348.23005832,0.00014783,2]
[337039310,1725372638889,-1923.54707535,0.00014783,2]
[337039312,1725372638900,-3817.23127157,0.00014783,2]
[337039315,1725372638929,-10559.48183366,0.00014783,2]
[337039317,1725372638943,-266.423,0.00014784,2]
[337039319,1725372638953,-159.166,0.00014784,2]
[337039321,1725372638963,-51272.5425,0.00014785,2]
[337039323,1725372638973,-7743.3289,0.00014785,2]
[337039325,1725372638985,-729.3701,0.00014785,2]
[337039326,1725372638995,-1263.138,0.00014785,2]
[337039328,1725372639006,-12980.5306213,0.0001479,2]
[337039330,1725372639016,-480.41892138,0.0001479,2]
[337039332,1725372639025,-312.793636,0.00014795,2]
[337039334,1725372639035,-1942.65,0.00014799,2]
[337039336,1725372639044,-1942.65,0.00014799,2]
[337039338,1725372639054,-1942.65,0.00014799,2]
[337039340,1725372639063,-3347.31,0.00014799,2]
[337039342,1725372639072,-3347.31,0.00014799,2]
[337039344,1725372639082,-3347.31,0.00014799,2]
[337039346,1725372639092,-500.0,0.00014799,2]
[337039348,1725372639101,-500.0,0.00014799,2]
[337039350,1725372639110,-500.0,0.00014799,2]
[337039352,1725372639120,-694.15,0.00014799,2]
[337039354,1725372639129,-694.15,0.00014799,2]
[337039356,1725372639139,-694.15,0.00014799,2]
[337039358,1725372639148,-3073.60855091,0.000148,2]
[337039360,1725372639157,-9187.00734213,0.000148,2]
[337039362,1725372639169,-1893.1272692,0.000148,2]
[337039368,1725372639219,-458.19366346,0.000148,2]
[337039370,1725372639230,-765.41975306,0.000148,2]
[337039372,1725372639244,-1340.01178555,0.000148,2]
[337039374,1725372639255,-1921.952907,0.000148,2]
[337039377,1725372639267,-612.86476714,0.000148,2]
[337039379,1725372639278,-799.5914014,0.000148,2]
[337039381,1725372639289,-738.582293,0.000148,2]
[337039383,1725372639301,-597.24,0.000148,2]
[337039385,1725372639312,-582.9453435,0.000148,2]
[337039389,1725372639339,-3181.070885,0.000148,2]
[337039391,1725372639355,-12338.0355354,0.000148,2]
[337039394,1725372639366,-5633.14858399,0.000148,2]
[337039478,1725372640255,-558.89350208,0.000148,2]
[337039482,1725372640290,-13563.56734335,0.000148,2]
[337039485,1725372640302,-1048.582763,0.000148,2]
[337039487,1725372640314,-846.52210567,0.000148,2]
[337039489,1725372640325,-16277.64934177,0.000148,2]
[337039491,1725372640340,-3380.13510885,0.000148,2]
[337039494,1725372640356,-384.644286,0.000148,2]
[337039496,1725372640367,-15122.18966287,0.000148,2]
[337039498,1725372640379,-8602.52214844,0.000148,2]
[337039501,1725372640395,-4503.46066958,0.000148,2]
[337039502,1725372640406,-2400.47475159,0.000148,2]
[337039505,1725372640418,-96418.94773589,0.000148,2]
[337039507,1725372640429,-513.23671877,0.000148,2]
[337039551,1725372640935,-296.98125392,0.000148,2]
[337039557,1725372640996,-5901.5472312,0.000148,2]
[337039560,1725372641007,-1637.29710056,0.000148,2]
[337039562,1725372641018,-982.24203917,0.000148,2]
[337039565,1725372641038,-1202.40068981,0.000148,2]
[337039567,1725372641050,-3508.42643465,0.000148,2]
[337039569,1725372641062,-303.35499935,0.000148,2]
[337039573,1725372641094,-491784.94736771,0.000148,2]
[337039575,1725372641104,-8238.09,0.0001487,2]
[337039577,1725372641114,-7216.15,0.0001487,2]
[337039579,1725372641123,-320.27928092,0.0001487,2]
[337039581,1725372641133,-7038.46,0.0001487,2]
[337039583,1725372641142,-7325.92,0.0001487,2]
[337039585,1725372641151,-843.85,0.0001487,2]
[337039587,1725372641161,-5379.93,0.0001487,2]
[337039589,1725372641170,-2174.3,0.0001487,2]
[337039591,1725372641180,-2938.83,0.0001487,2]
[337039592,1725372641189,-502.64505133,0.0001487,2]
[337039594,1725372641199,-3122.42,0.0001487,2]
[337039595,1725372641208,-609.31,0.0001487,2]
[337039597,1725372641218,-1203.68,0.0001487,2]
[337039598,1725372641227,-5934.85,0.0001487,2]
[337039600,1725372641241,-15979.75,0.0001487,2]
[337039601,1725372641251,-5549.95,0.0001487,2]
[337039603,1725372641260,-6199.01,0.0001487,2]
[337039604,1725372641269,-6669.18,0.0001487,2]
[337039606,1725372641279,-500.0,0.0001487,2]
[337039607,1725372641288,-8968.62,0.0001487,2]
[337039609,1725372641298,-9980.59,0.0001487,2]
[337039610,1725372641308,-25581.12,0.0001487,2]
[337039612,1725372641318,-8338.31,0.0001487,2]
[337039613,1725372641332,-11804.95,0.0001487,2]
[337039615,1725372641342,-2724.59,0.0001487,2]
[337039617,1725372641352,-19659.22,0.0001487,2]
[337039618,1725372641362,-2564.36,0.0001487,2]
[337039620,1725372641372,-1942.65,0.00014871,2]
[337039621,1725372641382,-3347.31,0.00014871,2]
[337039623,1725372641391,-500.0,0.00014871,2]
[337039624,1725372641401,-694.15,0.00014871,2]
[337039626,1725372641411,-500.0,0.00014873,2]
[337039627,1725372641420,-500.0,0.00014873,2]
[337039629,1725372641431,-8238.09,0.00014879,2]
[337039630,1725372641440,-8238.09,0.00014879,2]
[337039632,1725372641449,-7216.15,0.00014879,2]
[337039634,1725372641462,-7216.15,0.00014879,2]
[337039635,1725372641471,-7038.46,0.00014879,2]
[337039637,1725372641481,-7038.46,0.00014879,2]
[337039639,1725372641496,-7325.92,0.00014879,2]
[337039640,1725372641506,-7325.92,0.00014879,2]
[337039642,1725372641516,-843.85,0.00014879,2]
[337039644,1725372641526,-843.85,0.00014879,2]
[337039645,1725372641536,-5379.93,0.00014879,2]
[337039647,1725372641545,-4333.07579228,0.00014879,2]
[337039649,1725372641558,-1046.85420772,0.00014879,2]
[337039650,1725372641568,-2174.3,0.00014879,2]
[337039652,1725372641577,-2174.3,0.00014879,2]
[337039654,1725372641587,-2938.83,0.00014879,2]
[337039655,1725372641596,-2938.83,0.00014879,2]
[337039657,1725372641606,-3122.42,0.00014879,2]
[337039659,1725372641615,-3122.42,0.00014879,2]
[337039660,1725372641625,-609.31,0.00014879,2]
[337039662,1725372641634,-609.31,0.00014879,2]
[337039663,1725372641643,-1203.68,0.00014879,2]
[337039665,1725372641653,-1203.68,0.00014879,2]
[337039667,1725372641661,-5934.85,0.00014879,2]
[337039668,1725372641671,-5934.85,0.00014879,2]
[337039670,1725372641680,-15979.75,0.00014879,2]
[337039672,1725372641690,-15979.75,0.00014879,2]
[337039673,1725372641699,-5549.95,0.00014879,2]
[337039675,1725372641709,-5549.95,0.00014879,2]
[337039677,1725372641719,-6199.01,0.00014879,2]
[337039678,1725372641728,-6199.01,0.00014879,2]
[337039680,1725372641740,-6669.18,0.00014879,2]
[337039681,1725372641750,-6669.18,0.00014879,2]
[337039683,1725372641760,-500.0,0.00014879,2]
[337039685,1725372641769,-500.0,0.00014879,2]
[337039686,1725372641779,-8968.62,0.00014879,2]
[337039688,1725372641788,-8968.62,0.00014879,2]
[337039689,1725372641797,-9980.59,0.00014879,2]
[337039691,1725372641807,-9980.59,0.00014879,2]
[337039693,1725372641816,-25581.12,0.00014879,2]
[337039694,1725372641826,-25581.12,0.00014879,2]
[337039696,1725372641837,-8338.31,0.00014879,2]
[337039697,1725372641846,-8338.31,0.00014879,2]
[337039699,1725372641856,-1942.65,0.00014879,2]
[337039701,1725372641865,-1942.65,0.00014879,2]
[337039703,1725372641875,-1942.65,0.00014879,2]
[337039704,1725372641886,-11804.95,0.00014879,2]
[337039705,1725372641897,-11804.95,0.00014879,2]
[337039706,1725372641909,-3347.31,0.00014879,2]
[337039707,1725372641918,-3347.31,0.00014879,2]
[337039708,1725372641928,-1453.92438599,0.00014879,2]
[337039709,1725372641940,-1893.38561401,0.00014879,2]
[337039710,1725372641949,-500.0,0.00014879,2]
[337039711,1725372641959,-500.0,0.00014879,2]
[337039712,1725372641968,-2724.59,0.00014879,2]
[337039713,1725372641977,-500.0,0.00014879,2]
[337039715,1725372641990,-2724.59,0.00014879,2]
[337039717,1725372642000,-694.15,0.00014879,2]
[337039719,1725372642009,-694.15,0.00014879,2]
[337039721,1725372642019,-19659.22,0.00014879,2]
[337039723,1725372642028,-19659.22,0.00014879,2]
[337039725,1725372642038,-2564.36,0.00014879,2]
[337039727,1725372642047,-2564.36,0.00014879,2]
[337039729,1725372642056,-694.15,0.00014879,2]
[337039731,1725372642066,-289102.91184909,0.0001488,2]
[337039750,1725372642241,-983.2495644,0.0001488,2]
[337039752,1725372642253,-23653.87340324,0.0001488,2]
[337039754,1725372642263,-616.89321857,0.0001488,2]
[337039757,1725372642278,-662.68309162,0.0001488,2]
[337039759,1725372642289,-362.7296,0.0001488,2]
[337039760,1725372642301,-9894.76560632,0.0001488,2]
[337039763,1725372642313,-331.44623355,0.0001488,2]
[337039765,1725372642323,-377.6895691,0.0001488,2]
[337039767,1725372642341,-2586.02150144,0.0001488,2]
[337039769,1725372642351,-927.22751103,0.0001488,2]
[337039772,1725372642363,-714.13926867,0.0001488,2]
[337039774,1725372642374,-1001.60210072,0.0001488,2]
[337039777,1725372642397,-323.21934277,0.0001488,2]
[337039881,1725372643338,-500.0,0.0001487,2]
[337039883,1725372643348,-10488.3773015,0.0001488,2]
[337039885,1725372643359,-737.99988251,0.0001488,2]
[337039887,1725372643370,-1789.29207492,0.0001488,2]
[337039889,1725372643381,-1137.88598791,0.0001488,2]